fUST/lending_fUST_20250924
["ID","MTS","AMOUNT","RATE_DAILY","PERIOD"]
[387383470,1758709845134,-480.0,0.0002,2]
[387383472,1758709845143,-243.40218685,0.0002,2]
[387383473,1758709845152,-480.0,0.0002,2]
[387383474,1758709845161,-517.13,0.0002,2]
[387383475,1758709845170,-480.0,0.0002,2]
[387383476,1758709845179,-480.0,0.0002,2]
[387383477,1758709845188,-480.0,0.0002,2]
[387383478,1758709845197,-480.0,0.0002,2]
[387383479,1758709845206,-480.0,0.0002,2]
[387383480,1758709845215,-480.0,0.0002,2]
[387383481,1758709845224,-480.0,0.0002,2]
[387383482,1758709845233,-480.0,0.0002,2]
[387383483,1758709845242,-528.65,0.0002,2]
[387383484,1758709845251,-480.0,0.0002,2]
[387383485,1758709845261,-499.39686674,0.0002,2]
[387383486,1758709845270,-1697.26,0.0002,2]
[387383487,1758709845279,-480.0,0.0002,2]
[387383488,1758709845288,-1180.73,0.0002,2]
[387383489,1758709845297,-313.27923297,0.0002,2]
[387383490,1758709845306,-195.17436252,0.0002,2]
[387383491,1758709845400,-284.82563748,0.0002,2]
[387383492,1758709845409,-1514.71,0.0002,2]
[387383493,1758709845421,-480.0,0.0002,2]
[387383494,1758709845430,-480.0,0.0002,2]
[387383495,1758709845438,-670.87,0.0002,2]
[387383496,1758709845447,-480.0,0.0002,2]
[387383497,1758709845456,-836.81,0.0002,2]
[387383498,1758709845465,-480.0,0.0002,2]
[387383499,1758709845474,-944.2,0.0002,2]
[387383500,1758709845483,-480.0,0.0002,2]
[387383501,1758709845492,-480.0,0.0002,2]
[387383503,1758709845501,-480.0,0.0002,2]
[387383504,1758709845510,-480.0,0.0002,2]
[387383505,1758709845519,-480.0,0.0002,2]
[387383506,1758709845528,-480.0,0.0002,2]
[387383508,1758709845537,-480.0,0.0002,2]
[387383510,1758709845546,-480.0,0.0002,2]
[387383512,1758709845555,-480.0,0.0002,2]
[387383514,1758709845564,-480.0,0.0002,2]
[387383517,1758709845574,-480.0,0.0002,2]
[387383520,1758709845583,-175.78930281,0.0002,2]
[387383522,1758709845593,-480.0,0.0002,2]
[387383524,1758709845602,-480.0,0.0002,2]
[387383526,1758709845612,-480.0,0.0002,2]
[387383528,1758709845622,-1966.2,0.0002,2]
[387383531,1758709845632,-480.0,0.0002,2]
[387383534,1758709845642,-480.0,0.0002,2]
[387383536,1758709845652,-480.0,0.0002,2]
[387383538,1758709845662,-480.0,0.0002,2]
[387383540,1758709845671,-480.0,0.0002,2]
[387383543,1758709845681,-480.0,0.0002,2]
[387383545,1758709845690,-480.0,0.0002,2]
[387383547,1758709845699,-480.0,0.0002,2]
[387383549,1758709845708,-319.86645787,0.0002,2]
[387383551,1758709845718,-818.09,0.0002,2]
[387383553,1758709845727,-626.3,0.0002,2]
[387383555,1758709845737,-480.0,0.0002,2]
[387383557,1758709845746,-480.0,0.0002,2]
[387383559,1758709845756,-480.0,0.0002,2]
[387383561,1758709845766,-480.0,0.0002,2]
[387383563,1758709845775,-701.89,0.0002,2]
[387383565,1758709845785,-1122.38,0.0002,2]
[387383567,1758709845794,-792.25,0.0002,2]
[387383569,1758709845803,-480.0,0.0002,2]
[387383571,1758709845813,-480.0,0.0002,2]
[387383572,1758709845823,-480.0,0.0002,2]
[387383574,1758709845833,-480.0,0.0002,2]
[387383576,1758709845844,-480.0,0.0002,2]
[387383578,1758709845853,-489.53839262,0.00020031,2]
[387383580,1758709845862,-480.0,0.00020031,2]
[387383582,1758709845872,-480.0,0.00020031,2]
[387383584,1758709845881,-480.0,0.00020031,2]
[387383586,1758709845890,-480.0,0.00020031,2]
[387383588,1758709845900,-480.0,0.00020031,2]
[387383590,1758709845909,-480.0,0.00020031,2]
[387383592,1758709845919,-480.0,0.00020031,2]
[387383594,1758709845929,-480.0,0.00020031,2]
[387383596,1758709845939,-480.0,0.00020031,2]
[387383598,1758709845949,-480.0,0.00020032,2]
[387383600,1758709845959,-3516.85,0.00020034,2]
[387383602,1758709845968,-566.32,0.00020034,2]
[387383604,1758709845977,-480.0,0.00020035,2]
[387383606,1758709845986,-480.0,0.00020035,2]
[387383608,1758709845996,-480.0,0.00020035,2]
[387383610,1758709846005,-480.0,0.00020035,2]
[387383612,1758709846014,-480.0,0.00020035,2]
[387383614,1758709846023,-480.0,0.00020035,2]
[387383616,1758709846033,-1369.26,0.00020035,2]
[387383618,1758709846042,-480.0,0.00020036,2]
[387383620,1758709846051,-813.11,0.00020036,2]
[387383629,1758709846134,-480.0,0.00020037,2]
[387383631,1758709846144,-681.27,0.00020037,2]
[387383633,1758709846154,-158.0,0.00020164,3]
[387383635,1758709846164,-1680.0,0.00020211,2]
[387383637,1758709846173,-420.0,0.00020212,2]
[387383639,1758709846182,-420.0,0.00020212,2]
[387383641,1758709846191,-420.0,0.00020212,2]
[387383643,1758709846200,-480.0,0.00020273,2]
[387383645,1758709846209,-480.0,0.00020273,2]
[387383647,1758709846219,-480.0,0.00020273,2]
[387383649,1758709846228,-517.13,0.00020273,2]
[387383651,1758709846238,-480.0,0.00020273,2]
[387383653,1758709846247,-480.0,0.00020273,2]
[387383655,1758709846256,-480.0,0.00020273,2]
[387383657,1758709846266,-480.0,0.00020273,2]
[387383659,1758709846276,-480.0,0.00020273,2]
[387383661,1758709846285,-480.0,0.00020273,2]
[387383663,1758709846294,-428.1796419,0.00020273,2]
[387383665,1758709846302,-480.0,0.00020273,2]
[387383667,1758709846312,-528.65,0.00020273,2]
[387383669,1758709846321,-480.0,0.00020273,2]
[387383671,1758709846331,-1697.26,0.00020273,2]
[387383673,1758709846342,-480.0,0.00020273,2]
[387383675,1758709846351,-1180.73,0.00020273,2]
[387383677,1758709846361,-151.0,0.00020273,2]
[387383679,1758709846370,-247.35474337,0.00020273,2]
[387383681,1758709846380,-1514.71,0.00020273,2]
[387383683,1758709846391,-480.0,0.00020273,2]
[387383685,1758709846399,-480.0,0.00020273,2]
[387383687,1758709846408,-670.87,0.00020273,2]
[387383689,1758709846420,-151.0,0.00020273,2]
[387383691,1758709846429,-480.0,0.00020273,2]
[387383693,1758709846439,-836.81,0.00020273,2]
[387383695,1758709846448,-151.0,0.00020273,2]
[387383697,1758709846457,-480.0,0.00020273,2]
[387383699,1758709846466,-944.2,0.00020273,2]
[387383701,1758709846475,-151.0,0.00020273,2]
[387383703,1758709846484,-480.0,0.00020273,2]
[387383705,1758709846494,-480.0,0.00020273,2]
[387383707,1758709846502,-480.0,0.00020273,2]
[387383709,1758709846512,-480.0,0.00020273,2]
[387383711,1758709846521,-480.0,0.00020273,2]
[387383713,1758709846530,-480.0,0.00020273,2]
[387383715,1758709846540,-480.0,0.00020273,2]
[387383717,1758709846549,-480.0,0.00020273,2]
[387383718,1758709846559,-152.193423,0.00020273,2]
[387383721,1758709846568,-480.0,0.00020273,2]
[387383723,1758709846578,-480.0,0.00020273,2]
[387383725,1758709846587,-480.0,0.00020273,2]
[387383727,1758709846596,-480.0,0.00020273,2]
[387383729,1758709846605,-151.0,0.00020273,2]
[387383730,1758709846615,-151.0,0.00020273,2]
[387383732,1758709846624,-480.0,0.00020273,2]
[387383734,1758709846634,-480.0,0.00020273,2]
[387383736,1758709846643,-151.0,0.00020273,2]
[387383738,1758709846652,-151.0,0.00020273,2]
[387383740,1758709846662,-1966.2,0.00020273,2]
[387383742,1758709846672,-480.0,0.00020273,2]
[387383744,1758709846682,-480.0,0.00020273,2]
[387383746,1758709846691,-151.0,0.00020273,2]
[387383748,1758709846701,-480.0,0.00020273,2]
[387383750,1758709846710,-151.0,0.00020273,2]
[387383752,1758709846719,-480.0,0.00020273,2]
[387383754,1758709846728,-480.0,0.00020273,2]
[387383756,1758709846737,-480.0,0.00020273,2]
[387383758,1758709846747,-480.0,0.00020273,2]
[387383760,1758709846756,-480.0,0.00020273,2]
[387383762,1758709846765,-151.0,0.00020273,2]
[387383764,1758709846775,-818.09,0.00020273,2]
[387383766,1758709846784,-151.0,0.00020273,2]
[387383768,1758709846794,-626.3,0.00020273,2]
[387383770,1758709846803,-151.0,0.00020273,2]
[387383772,1758709846814,-480.0,0.00020273,2]
[387383774,1758709846823,-480.0,0.00020273,2]
[387383776,1758709846832,-480.0,0.00020273,2]
[387383778,1758709846842,-151.0,0.00020273,2]
[387383780,1758709846851,-480.0,0.00020273,2]
[387383782,1758709846861,-701.89,0.00020273,2]
[387383784,1758709846870,-151.0,0.00020273,2]
[387383786,1758709846879,-1122.38,0.00020273,2]
[387383788,1758709846888,-792.25,0.00020273,2]
[387383790,1758709846898,-480.0,0.00020273,2]
[387383792,1758709846908,-480.0,0.00020273,2]
[387383794,1758709846917,-151.0,0.00020273,2]
[387383796,1758709846926,-480.0,0.00020273,2]
[387383798,1758709846935,-480.0,0.00020273,2]
[387383800,1758709846944,-480.0,0.00020273,2]
[387383802,1758709846953,-151.0,0.00020273,2]
[387383804,1758709846962,-151.0,0.00020273,2]
[387383806,1758709846971,-2167.43,0.00020282,2]
[387383808,1758709846980,-500.0,0.00020291,2]
[387383810,1758709846990,-480.0,0.00020305,2]
[387383812,1758709846999,-480.0,0.00020305,2]
[387383814,1758709847008,-480.0,0.00020305,2]
[387383816,1758709847017,-480.0,0.00020305,2]
[387383818,1758709847030,-480.0,0.00020305,2]
[387383820,1758709847039,-480.0,0.00020305,2]
[387383822,1758709847049,-480.0,0.00020305,2]
[387383824,1758709847058,-3516.85,0.00020308,2]
[387383826,1758709847068,-566.32,0.00020308,2]
[387383828,1758709847078,-480.0,0.00020309,2]
[387383830,1758709847087,-480.0,0.00020309,2]
[387383832,1758709847097,-480.0,0.00020309,2]
[387383834,1758709847106,-1369.26,0.00020309,2]
[387383836,1758709847116,-480.0,0.0002031,2]
[387383838,1758709847126,-1680.0,0.0002031,2]
[387383840,1758709847136,-813.11,0.0002031,2]
[387383842,1758709847145,-480.0,0.00020311,2]
[387383844,1758709847155,-168.3888056,0.00020364,2]
[387383846,1758709847164,-200.0,0.00020364,2]
[387383848,1758709847173,-200.0,0.00020364,2]
[387383850,1758709847182,-209.40437684,0.00020364,2]
[387383852,1758709847192,-250.0,0.00020364,2]
[387383854,1758709847203,-250.0,0.00020364,2]
[387383856,1758709847212,-151.0,0.00020364,2]
[387383858,1758709847222,-500.0,0.00020364,2]
[387383860,1758709847231,-500.0,0.00020364,2]
[387383862,1758709847241,-500.0,0.00020364,2]
[387383864,1758709847251,-500.0,0.00020364,2]
[387383866,1758709847260,-500.0,0.00020364,2]
[387383868,1758709847270,-500.0,0.00020364,2]
[387383870,1758709847279,-500.0,0.00020364,2]
[387383872,1758709847289,-500.0,0.00020364,2]
[387383874,1758709847299,-500.0,0.00020364,2]
[387383876,1758709847308,-500.0,0.00020364,2]
[387383878,1758709847318,-500.0,0.00020364,2]
[387383880,1758709847326,-5320.72322,0.0002039,2]
[387383882,1758709847335,-281.69742881,0.00020468,2]
[387383884,1758709847350,-500.0,0.00020468,2]
[387383886,1758709847359,-1500.0,0.00020468,2]
[387383888,1758709847368,-1500.0,0.00020468,2]
[387383889,1758709847377,-480.0,0.00020547,2]
[387383891,1758709847387,-162.42037152,0.00020547,2]
[387383893,1758709847397,-480.0,0.00020547,2]
[387383896,1758709847407,-517.13,0.00020547,2]
[387383898,1758709847416,-480.0,0.00020547,2]
[387383899,1758709847427,-480.0,0.00020547,2]
[387383902,1758709847437,-153.55389025,0.00020547,2]
[387383904,1758709847447,-480.0,0.00020547,2]
[387383906,1758709847457,-359.85014748,0.00020547,2]
[387383907,1758709847466,-480.0,0.00020547,2]
[387383909,1758709847475,-511.37223018,0.00020547,2]
[387383911,1758709847485,-528.65,0.00020547,2]
[387383913,1758709847494,-480.0,0.00020547,2]
[387383915,1758709847503,-1697.26,0.00020547,2]
[387383917,1758709847513,-1180.73,0.00020547,2]
[387383919,1758709847523,-1514.71,0.00020547,2]
[387383922,1758709847533,-480.0,0.00020547,2]
[387383923,1758709847543,-480.0,0.00020547,2]
[387383925,1758709847552,-670.87,0.00020547,2]
[387383927,1758709847562,-480.0,0.00020547,2]
[387383929,1758709847571,-836.81,0.00020547,2]
[387383931,1758709847580,-451.28896304,0.00020547,2]
[387383933,1758709847589,-944.2,0.00020547,2]
[387383935,1758709847599,-480.0,0.00020547,2]
[387383937,1758709847609,-480.0,0.00020547,2]
[387383939,1758709847619,-480.0,0.00020547,2]
[387383941,1758709847627,-480.0,0.00020547,2]
[387383943,1758709847637,-480.0,0.00020547,2]
[387383945,1758709847646,-480.0,0.00020547,2]
[387383947,1758709847656,-480.0,0.00020547,2]
[387383949,1758709847666,-480.0,0.00020547,2]
[387383951,1758709847675,-480.0,0.00020547,2]
[387383953,1758709847684,-480.0,0.00020547,2]
[387383955,1758709847694,-480.0,0.00020547,2]
[387383957,1758709847703,-480.0,0.00020547,2]
[387383959,1758709847713,-480.0,0.00020547,2]
[387383961,1758709847722,-1966.2,0.00020547,2]
[387383963,1758709847731,-480.0,0.00020547,2]
[387383965,1758709847740,-480.0,0.00020547,2]
[387383967,1758709847750,-480.0,0.00020547,2]
[387383969,1758709847759,-480.0,0.00020547,2]
[387383971,1758709847768,-480.0,0.00020547,2]
[387383973,1758709847778,-480.0,0.00020547,2]
[387383975,1758709847786,-480.0,0.00020547,2]
[387383977,1758709847796,-480.0,0.00020547,2]
[387383979,1758709847806,-818.09,0.00020547,2]
[387383981,1758709847817,-626.3,0.00020547,2]
[387383991,1758709847897,-480.0,0.00020547,2]
[387383992,1758709847908,-480.0,0.00020547,2]
[387383993,1758709847917,-480.0,0.00020547,2]
[387383994,1758709847927,-701.89,0.00020547,2]
[387383995,1758709847936,-1122.38,0.00020547,2]
[387383996,1758709847945,-792.25,0.00020547,2]
[387383997,1758709847955,-480.0,0.00020547,2]
[387383998,1758709847964,-480.0,0.00020547,2]
[387383999,1758709847973,-480.0,0.00020547,2]
[387384000,1758709847982,-480.0,0.00020547,2]
[387384001,1758709847991,-1389.34,0.0002057,3]
[387384002,1758709848000,-694.68,0.00020572,3]
[387384003,1758709848009,-347.34,0.00020572,3]
[387384005,1758709848018,-480.0,0.00020579,2]
[387384007,1758709848027,-480.0,0.00020579,2]
[387384009,1758709848036,-480.0,0.00020579,2]
[387384011,1758709848046,-3516.85,0.00020582,2]
[387384013,1758709848055,-566.32,0.00020582,2]
[387384015,1758709848065,-480.0,0.00020583,2]
[387384017,1758709848074,-480.0,0.00020583,2]
[387384019,1758709848083,-1369.26,0.00020583,2]
[387384021,1758709848093,-480.0,0.00020584,2]
[387384023,1758709848102,-352.69824101,0.00020584,2]
[387384025,1758709848117,-460.41175899,0.00020584,2]
[387384027,1758709848127,-472.95337095,0.00020585,2]
[387384029,1758709848136,-8968.07120792,0.00020627,3]
[387384031,1758709848146,-532.2324375,0.00020627,3]
[387384033,1758709848155,-480.0,0.00020821,2]
[387384035,1758709848164,-624.7758733,0.00020821,2]
[387384037,1758709848173,-517.13,0.00020821,2]
[387384039,1758709848182,-480.0,0.00020821,2]
[387384041,1758709848192,-480.0,0.00020821,2]
[387384043,1758709848201,-480.0,0.00020821,2]
[387384045,1758709848210,-528.65,0.00020821,2]
[387384047,1758709848219,-480.0,0.00020821,2]
[387384049,1758709848229,-1697.26,0.00020821,2]
[387384051,1758709848238,-1180.73,0.00020821,2]
[387384053,1758709848247,-1514.71,0.00020821,2]
[387384055,1758709848256,-480.0,0.00020821,2]
[387384057,1758709848266,-670.87,0.00020821,2]
[387384059,1758709848275,-480.0,0.00020821,2]
[387384061,1758709848284,-836.81,0.00020821,2]
[387384063,1758709848294,-944.2,0.00020821,2]
[387384065,1758709848303,-480.0,0.00020821,2]
[387384067,1758709848313,-578.05468445,0.00020821,2]
[387384069,1758709848322,-241.209254,0.00020821,2]
[387384071,1758709848332,-480.0,0.00020821,2]
[387384073,1758709848343,-572.37597066,0.00020821,2]
[387384075,1758709848360,-480.0,0.00020821,2]
[387384077,1758709848370,-480.0,0.00020821,2]
[387384079,1758709848379,-480.0,0.00020821,2]
[387384081,1758709848390,-480.0,0.00020821,2]
[387384083,1758709848399,-480.0,0.00020821,2]
[387384085,1758709848408,-480.0,0.00020821,2]
[387384087,1758709848418,-1966.2,0.00020821,2]
[387384089,1758709848427,-480.0,0.00020821,2]
[387384091,1758709848438,-480.0,0.00020821,2]
[387384093,1758709848447,-480.0,0.00020821,2]
[387384095,1758709848457,-480.0,0.00020821,2]
[387384097,1758709848467,-480.0,0.00020821,2]
[387384099,1758709848477,-480.0,0.00020821,2]
[387384101,1758709848486,-818.09,0.00020821,2]
[387384103,1758709848496,-626.3,0.00020821,2]
[387384105,1758709848505,-480.0,0.00020821,2]
[387384107,1758709848514,-480.0,0.00020821,2]
[387384109,1758709848524,-480.0,0.00020821,2]
[387384111,1758709848533,-701.89,0.00020821,2]
[387384113,1758709848543,-1122.38,0.00020821,2]
[387384115,1758709848552,-792.25,0.00020821,2]
[387384117,1758709848561,-480.0,0.00020821,2]
[387384119,1758709848570,-480.0,0.00020821,2]
[387384121,1758709848580,-480.0,0.00020821,2]
[387384123,1758709848590,-480.0,0.00020821,2]
[387384125,1758709848600,-480.0,0.00020853,2]
[387384127,1758709848609,-480.0,0.00020853,2]
[387384129,1758709848619,-480.0,0.00020853,2]
[387384131,1758709848628,-3516.85,0.00020856,2]
[387384133,1758709848639,-566.32,0.00020856,2]
[387384135,1758709848648,-1369.26,0.00020857,2]
[387384137,1758709848657,-480.0,0.00020858,2]
[387384139,1758709848666,-813.11,0.00020858,2]
[387384141,1758709848675,-174.61919141,0.00020912,2]
[387384143,1758709848684,-2145.23827541,0.00020972,2]
[387384145,1758709848694,-150.0,0.00021,2]
[387384147,1758709848703,-2000.0,0.00021016,2]
[387384149,1758709848712,-643.91202023,0.00021016,2]
[387384151,1758709848722,-480.0,0.00021095,2]
[387384153,1758709848731,-517.13,0.00021095,2]
[387384155,1758709848741,-480.0,0.00021095,2]
[387384157,1758709848751,-480.0,0.00021095,2]
[387384159,1758709848760,-480.0,0.00021095,2]
[387384161,1758709848770,-528.65,0.00021095,2]
[387384163,1758709848780,-495.44463728,0.00021095,2]
[387384165,1758709848790,-1697.26,0.00021095,2]
[387384167,1758709848800,-1180.73,0.00021095,2]
[387384169,1758709848809,-1514.71,0.00021095,2]
[387384171,1758709848819,-480.0,0.00021095,2]
[387384173,1758709848829,-670.87,0.00021095,2]
[387384175,1758709848838,-480.0,0.00021095,2]
[387384177,1758709848851,-836.81,0.00021095,2]
[387384180,1758709848862,-944.2,0.00021095,2]
[387384182,1758709848871,-480.0,0.00021095,2]
[387384184,1758709848880,-480.0,0.00021095,2]
[387384186,1758709848890,-480.0,0.00021095,2]
[387384188,1758709848899,-480.0,0.00021095,2]
[387384190,1758709848909,-480.0,0.00021095,2]
[387384192,1758709848919,-480.0,0.00021095,2]
[387384194,1758709848929,-1966.2,0.00021095,2]
[387384195,1758709848938,-480.0,0.00021095,2]
[387384198,1758709848948,-480.0,0.00021095,2]
[387384200,1758709848957,-480.0,0.00021095,2]
[387384202,1758709848966,-480.0,0.00021095,2]
[387384204,1758709848976,-480.0,0.00021095,2]
[387384206,1758709848985,-480.0,0.00021095,2]
[387384208,1758709848995,-818.09,0.00021095,2]
[387384210,1758709849004,-626.3,0.00021095,2]
[387384212,1758709849013,-480.0,0.00021095,2]
[387384214,1758709849024,-480.0,0.00021095,2]
[387384215,1758709849033,-701.89,0.00021095,2]
[387384217,1758709849042,-1122.38,0.00021095,2]
[387384219,1758709849051,-792.25,0.00021095,2]
[387384221,1758709849060,-480.0,0.00021095,2]
[387384223,1758709849070,-480.0,0.00021095,2]
[387384225,1758709849079,-480.0,0.00021095,2]
[387384227,1758709849088,-480.0,0.00021095,2]
[387384229,1758709849100,-189.0127112,0.00021096,2]
[387384231,1758709849108,-586.8677381,0.00021096,2]
[387384233,1758709849117,-151.0,0.000211,4]
[387384235,1758709849127,-494.7860326,0.00021127,2]
[387384237,1758709849136,-480.0,0.00021127,2]
[387384239,1758709849145,-216.85,0.00021127,2]
[387384241,1758709849154,-3516.85,0.0002113,2]
[387384243,1758709849163,-566.32,0.0002113,2]
[387384245,1758709849173,-1369.26,0.00021131,2]
[387384247,1758709849182,-480.0,0.00021132,2]
[387384249,1758709849192,-813.11,0.00021132,2]
[387384251,1758709849201,-3251.15,0.00021203,2]
[387384253,1758709849210,-4636.02285502,0.00021296,2]
[387384255,1758709849223,-9236.05471207,0.00021296,2]
[387384257,1758709849232,-500.0,0.00021333,2]
[387384259,1758709849242,-500.0,0.00021333,2]
[387384261,1758709849251,-500.0,0.00021333,2]
[387384263,1758709849261,-500.0,0.00021333,2]
[387384265,1758709849271,-500.0,0.00021333,2]
[387384267,1758709849280,-500.0,0.00021333,2]
[387384269,1758709849290,-500.0,0.00021359,2]
[387384271,1758709849299,-480.0,0.00021369,2]
[387384273,1758709849309,-517.13,0.00021369,2]
[387384275,1758709849319,-480.0,0.00021369,2]
[387384277,1758709849328,-480.0,0.00021369,2]
[387384279,1758709849338,-528.65,0.00021369,2]
[387384281,1758709849353,-1697.26,0.00021369,2]
[387384283,1758709849362,-764.77456866,0.00021369,2]
[387384286,1758709849376,-415.95543134,0.00021369,2]
[387384288,1758709849386,-1514.71,0.00021369,2]
[387384290,1758709849397,-480.0,0.00021369,2]
[387384292,1758709849407,-670.87,0.00021369,2]
[387384294,1758709849417,-480.0,0.00021369,2]
[387384296,1758709849427,-836.81,0.00021369,2]
[387384298,1758709849437,-944.2,0.00021369,2]
[387384300,1758709849446,-480.0,0.00021369,2]
[387384302,1758709849456,-480.0,0.00021369,2]
[387384304,1758709849466,-480.0,0.00021369,2]
[387384313,1758709849540,-480.0,0.00021369,2]
[387384315,1758709849550,-480.0,0.00021369,2]
[387384317,1758709849559,-480.0,0.00021369,2]
[387384319,1758709849568,-1966.2,0.00021369,2]
[387384321,1758709849578,-480.0,0.00021369,2]
[387384323,1758709849587,-480.0,0.00021369,2]
[387384325,1758709849598,-480.0,0.00021369,2]
[387384327,1758709849607,-413.87084952,0.00021369,2]
[387384330,1758709849619,-66.12915048,0.00021369,2]
[387384332,1758709849629,-818.09,0.00021369,2]
[387384334,1758709849638,-626.3,0.00021369,2]
[387384336,1758709849647,-480.0,0.00021369,2]
[387384338,1758709849656,-480.0,0.00021369,2]
[387384340,1758709849666,-701.89,0.00021369,2]
[387384342,1758709849676,-1122.38,0.00021369,2]
[387384344,1758709849685,-792.25,0.00021369,2]
[387384346,1758709849695,-480.0,0.00021369,2]
[387384348,1758709849704,-480.0,0.00021369,2]
[387384350,1758709849713,-251.64496245,0.00021369,2]
[387384352,1758709849722,-480.0,0.00021369,2]
[387384354,1758709849731,-151.0,0.000214,3]
[387384356,1758709849740,-480.0,0.00021401,2]
[387384358,1758709849750,-3516.85,0.00021404,2]
[387384360,1758709849759,-566.32,0.00021404,2]
[387384362,1758709849767,-151.0,0.00021404,2]
[387384364,1758709849776,-151.0,0.00021404,2]
[387384366,1758709849785,-159.783158,0.00021404,2]
[387384368,1758709849794,-1369.26,0.00021405,2]
[387384370,1758709849803,-480.0,0.00021406,2]
[387384372,1758709849813,-813.11,0.00021406,2]
[387384374,1758709849822,-160.0,0.00021442,2]
[387384376,1758709849831,-181.08010149,0.0002146,2]
[387384378,1758709849841,-12656.11555711,0.000215,2]
[387384380,1758709849850,-151.441873,0.00021564,2]
[387384382,1758709849860,-151.0,0.00021564,2]
[387384384,1758709849870,-151.0,0.00021564,2]
[387384386,1758709849880,-151.0,0.00021564,2]
[387384388,1758709849889,-151.0,0.00021564,2]
[387384390,1758709849898,-192.684414,0.00021564,2]
[387384392,1758709849908,-2500.0,0.00021564,2]
[387384394,1758709849917,-151.82406369,0.00021621,2]
[387384396,1758709849927,-151.0,0.00021621,2]
[387384397,1758709849938,-500.80150842,0.00021621,2]
[387384399,1758709849948,-500.45229622,0.00021638,2]
[387384401,1758709849956,-500.0,0.00021638,2]
[387384403,1758709849966,-500.77359197,0.00021638,2]
[387384406,1758709849976,-226.17366052,0.00021643,2]
[387384408,1758709849985,-517.13,0.00021643,2]
[387384410,1758709849994,-480.0,0.00021643,2]
[387384412,1758709850003,-480.0,0.00021643,2]
[387384414,1758709850013,-528.65,0.00021643,2]
[387384416,1758709850022,-1697.26,0.00021643,2]
[387384418,1758709850031,-1180.73,0.00021643,2]
[387384420,1758709850040,-1514.71,0.00021643,2]
[387384422,1758709850049,-480.0,0.00021643,2]
[387384424,1758709850058,-670.87,0.00021643,2]
[387384426,1758709850067,-480.0,0.00021643,2]
[387384428,1758709850077,-836.81,0.00021643,2]
[387384430,1758709850086,-944.2,0.00021643,2]
[387384432,1758709850096,-480.0,0.00021643,2]
[387384434,1758709850105,-480.0,0.00021643,2]
[387384436,1758709850114,-480.0,0.00021643,2]
[387384438,1758709850123,-480.0,0.00021643,2]
[387384440,1758709850132,-480.0,0.00021643,2]
[387384442,1758709850141,-1966.2,0.00021643,2]
[387384444,1758709850150,-480.0,0.00021643,2]
[387384446,1758709850159,-480.0,0.00021643,2]
[387384448,1758709850168,-480.0,0.00021643,2]
[387384450,1758709850177,-818.09,0.00021643,2]